bitfinex/quotes_ETHUSD_20250904
["timestamp","ask_amount","ask_price","bid_price","bid_amount"]
[1756964015153,10.99151783,4379.8,4379.7,1.2214]
[1756964016168,4.06330856,4379.8,4379.7,0.7924]
[1756964016457,0.1144,4379.8,4379.7,1.34394]
[1756964016869,2.39760927,4379.8,4379.7,1.2214]
[1756964017052,0.1144,4379.8,4379.7,1.2214]
[1756964017258,2.39760927,4379.8,4379.7,1.2214]
[1756964019164,2.39760927,4379.8,4379.7,0.7924]
[1756964019334,10.62955673,4379.8,4379.7,0.004]
[1756964019529,11.3105594,4379.8,4379.7,0.004]
[1756964020066,11.0188594,4379.8,4379.7,0.004]
[1756964020568,18.03485939,4379.8,4379.7,0.004]
[1756964020967,18.32655939,4379.8,4379.7,0.004]
[1756964021169,19.26746212,4379.8,4379.7,0.004]
[1756964021944,18.81176212,4379.8,4379.7,0.004]
[1756964022344,18.52006212,4379.8,4379.7,0.004]
[1756964022745,17.74419689,4379.8,4379.7,0.2995]
[1756964023279,13.10019689,4379.8,4379.7,1.2214]
[1756964023473,16.95219689,4379.8,4379.7,1.2214]
[1756964024854,10.81698762,4379.8,4379.7,1.2214]
[1756964025076,12.41360926,4379.8,4379.7,1.2214]
[1756964025745,9.41360926,4379.8,4379.7,1.2214]
[1756964026779,2.39760927,4379.8,4379.7,1.2214]
[1756964030378,2.39760927,4379.8,4379.7,0.2995]
[1756964030560,2.39760927,4379.8,4379.7,0.004]
[1756964030561,2.69489423,4379.8,4379.7,0.004]
[1756964030760,5.99439423,4379.8,4379.7,0.004]
[1756964030968,5.98880927,4379.8,4379.7,0.004]
[1756964031576,9.83980927,4379.8,4379.7,0.004]
[1756964031787,10.29550927,4379.8,4379.7,0.004]
[1756964032412,11.55390927,4379.8,4379.7,0.004]
[1756964032712,19.16119232,4379.8,4379.7,0.004]
[1756964039774,19.16119232,4379.8,4379.2,1e-08]
[1756964039979,13.98183745,4379.3,4379.2,1e-08]
[1756964040187,21.90714906,4379.3,4379.2,1e-08]
[1756964040433,23.10814906,4379.3,4379.2,1e-08]
[1756964040573,23.60104906,4379.3,4379.2,1e-08]
[1756964040774,12.69468157,4379.3,4379.2,1e-08]
[1756964041917,23.60104906,4379.3,4379.2,1e-08]
[1756964043605,21.33025535,4379.3,4379.2,1e-08]
[1756964045221,11.18919851,4379.3,4379.2,1e-08]
[1756964045518,12.39506101,4379.3,4379.2,1e-08]
[1756964045815,21.33025535,4379.3,4379.2,1e-08]
[1756964046187,20.86785535,4379.3,4379.2,1e-08]
[1756964046387,20.3828268,4379.3,4379.2,1e-08]
[1756964047006,20.8452268,4379.3,4379.2,1e-08]
[1756964047217,20.3828268,4379.3,4379.2,1e-08]
[1756964048021,21.32944527,4379.3,4379.2,1e-08]
[1756964048225,21.62906583,4379.3,4379.2,1e-08]
[1756964049055,21.32944527,4379.3,4379.2,1e-08]
[1756964049918,21.44384527,4379.3,4379.2,1e-08]
[1756964050318,0.792,4378.7,4377.8,0.025]
[1756964050647,6.07620018,4377.9,4377.8,0.025]
[1756964050848,10.50266268,4377.9,4377.8,0.025]
[1756964051040,10.21686268,4377.9,4377.8,0.025]
[1756964051643,10.50266268,4377.9,4377.8,0.025]
[1756964052562,10.95546268,4377.9,4377.8,0.025]
[1756964052727,11.41786268,4377.9,4377.8,0.025]
[1756964053126,10.21686268,4377.9,4377.8,0.025]
[1756964053358,10.50266268,4377.9,4377.8,0.025]
[1756964053824,10.95546268,4377.9,4377.8,0.025]
[1756964054029,10.21686268,4377.9,4377.8,0.025]
[1756964054259,9.92620018,4377.9,4377.8,0.3258]
[1756964054462,9.92620018,4377.9,4377.8,0.025]
[1756964055068,6.07620018,4377.9,4377.8,0.025]
[1756964055280,9.92620018,4377.9,4377.8,0.3258]
[1756964055771,9.13420018,4377.9,4377.8,0.3258]
[1756964056174,9.13420018,4377.9,4377.8,0.8174]
[1756964056534,9.13420018,4377.9,4377.8,1.2885]
[1756964056828,0.4916,4378.0,4377.8,10.35254434]
[1756964057060,0.00658496,4379.3,4377.9,0.9627]
[1756964057228,0.4916,4379.0,4377.9,0.9627]
[1756964057429,1.016,4378.9,4378.0,0.9627]
[1756964057657,3.0,4378.8,4378.1,0.9627]
[1756964057844,1.016,4378.9,4378.1,0.4711]
[1756964057845,2.28398474,4378.4,4378.1,0.4711]
[1756964058053,2.28398474,4378.4,4378.3,0.3008]
[1756964058248,2.28398474,4378.4,4378.3,1.2635]
[1756964058429,2.28398474,4378.4,4378.3,0.7924]
[1756964058636,2.28398474,4378.4,4378.3,1.2635]
[1756964058949,2.28398474,4378.4,4378.3,0.3008]
[1756964059297,2.28414801,4378.0,4377.9,0.4916]
[1756964059579,2.28420018,4377.9,4377.8,0.025]
[1756964059945,2.28420018,4377.9,4377.8,0.3258]
[1756964060554,6.07620018,4377.9,4377.8,0.025]
[1756964060776,6.47640018,4377.9,4377.8,0.025]
[1756964061183,7.68226268,4377.9,4377.8,0.025]
[1756964061899,14.69826267,4377.9,4377.8,0.025]
[1756964063095,23.63345701,4377.9,4377.8,0.025]
[1756964064177,16.61745702,4377.9,4377.8,0.025]
[1756964064876,20.46745702,4377.9,4377.8,0.025]
[1756964065178,10.32640018,4377.9,4377.8,0.025]
[1756964066275,10.77920018,4377.9,4377.8,0.025]
[1756964066903,10.32640018,4377.9,4377.8,0.025]
[1756964068082,10.77920018,4377.9,4377.8,0.025]
[1756964068480,6.47640018,4377.9,4377.8,0.025]
[1756964068789,10.32640018,4377.9,4377.8,0.025]
[1756964069112,10.04060018,4377.9,4377.8,0.029]
[1756964069296,6.67439581,4377.9,4377.8,0.029]
[1756964069496,10.52439581,4377.9,4377.8,0.029]
[1756964070027,11.24279581,4377.9,4377.8,0.029]
[1756964070317,10.32640018,4377.9,4377.8,0.029]
[1756964070717,10.75900018,4377.9,4377.8,0.029]
[1756964070892,20.15349452,4377.9,4377.8,0.029]
[1756964071712,20.44415702,4377.9,4377.8,0.029]
[1756964072820,20.44415702,4377.9,4377.3,0.004]
[1756964072821,0.792,4377.5,4376.8,0.025]
[1756964072997,6.07672206,4376.9,4376.8,0.025]
[1756964073330,3.85,4377.0,4376.8,0.025]
[1756964073624,0.1144,4377.3,4376.9,1.756]
[1756964073920,4.53677467,4378.3,4377.5,2.28439392]
[1756964074087,0.1144,4377.6,4377.5,8.93519434]
[1756964074288,0.1144,4377.6,4377.5,0.2876]
[1756964074724,0.1144,4377.6,4377.5,1.2056]
[1756964075312,0.1144,4377.6,4377.5,0.2876]
[1756964075313,2.39875672,4377.6,4377.5,0.2876]
[1756964075619,2.28472206,4376.9,4376.8,0.025]
[1756964076024,2.28472206,4376.9,4376.8,0.7684]
[1756964076320,3.1144,4377.0,4376.8,1.35366]
[1756964076522,0.1144,4376.9,4376.8,1.35366]
[1756964076924,0.1144,4377.4,4376.8,1.46806]
[1756964077100,2.28446788,4377.4,4376.8,1.35366]
[1756964077300,2.1886,4378.2,4376.8,0.43566]
[1756964077301,0.1144,4376.9,4376.8,0.43566]
[1756964077539,0.1144,4376.9,4376.8,0.3126]
[1756964077917,0.1144,4376.9,4376.8,1.2306]
[1756964079393,0.1144,4376.9,4376.8,3.51537426]
[1756964079599,6.849,4377.6,4376.8,3.51537426]
[1756964079796,0.1144,4377.2,4376.9,0.918]
[1756964080024,0.1144,4377.2,4377.1,0.2876]
[1756964080223,0.1144,4377.2,4377.1,0.7434]
[1756964080568,0.1144,4377.2,4377.1,1.2056]
[1756964081246,1.358,4378.0,4377.1,1.2056]
[1756964081447,0.1144,4377.4,4377.2,2.28456547]
[1756964081745,0.1144,4377.4,4377.3,1.50903655]
[1756964082225,0.1144,4377.4,4377.3,1.2056]
[1756964082433,0.1144,4377.4,4377.3,3.49011328]
[1756964082632,0.001,4378.4,4377.3,27.23479623]
[1756964082833,0.001,4378.4,4377.5,2.2844089]
[1756964083004,0.001,4378.4,4378.3,2.2839915]
[1756964083205,0.001,4378.4,4378.3,3.02840545]
[1756964083403,0.001,4378.4,4378.3,0.74441395]
[1756964083726,0.001,4378.4,4378.3,0.2876]
[1756964085107,0.7544,4378.4,4377.4,3.85]
[1756964085424,0.1144,4377.8,4377.4,4.3058]
[1756964085632,0.1144,4377.8,4377.7,0.2876]
[1756964086705,0.1144,4377.8,4377.3,2.3326]
[1756964086905,0.46588496,4378.4,4377.3,0.23326]
[1756964086906,0.1144,4377.4,4377.3,0.23326]
[1756964087100,0.1144,4377.4,4377.3,0.52086]
[1756964088202,0.1144,4377.4,4377.1,3.849]
[1756964088721,0.1144,4377.4,4376.8,0.025]
[1756964088722,2.39886109,4377.4,4377.3,0.004]
[1756964088924,0.2941,4377.4,4377.3,0.004]
[1756964089124,0.4085,4377.4,4377.3,0.004]
[1756964089520,2.69296109,4377.4,4377.3,0.004]
[1756964089722,3.12556109,4377.4,4377.3,0.004]
[1756964090519,2.69296109,4377.4,4377.3,0.004]
[1756964090852,0.1144,4377.4,4377.3,0.2916]
[1756964091052,3.0,4378.0,4377.3,0.2916]
[1756964091206,0.1144,4377.4,4377.3,0.2916]
[1756964092640,0.1144,4377.7,4377.4,2.28441756]
[1756964092835,0.1144,4377.7,4377.6,0.2876]
[1756964093431,0.1144,4377.7,4377.6,0.7434]
[1756964093630,0.1144,4378.1,4377.8,2.28420358]
[1756964093799,0.1144,4378.1,4378.0,0.2876]
[1756964094329,0.1144,4378.1,4378.0,1.2056]
[1756964094505,0.1144,4378.1,4378.0,0.7434]
[1756964094831,2.39849584,4378.1,4377.9,0.57741603]
[1756964095002,2.69263582,4378.1,4377.2,0.4622]
[1756964095204,2.57823582,4378.1,4377.4,4.15012001]
[1756964095422,0.1144,4377.8,4377.4,4.15012001]
[1756964095656,0.1144,4377.8,4377.4,6.43457891]
[1756964095938,0.1144,4377.8,4377.7,0.2876]
[1756964097110,0.1144,4377.8,4377.7,2.57190454]
[1756964097309,0.1144,4377.8,4377.7,3.51813194]
[1756964097631,0.1144,4377.8,4377.7,1.2338274]
[1756964098241,0.1144,4377.8,4377.7,2.1518274]
[1756964098427,0.1144,4378.3,4377.8,2.28420837]
[1756964098635,0.1144,4378.3,4378.2,0.2876]
[1756964099514,0.001,4378.4,4378.2,0.2876]
[1756964100414,0.001,4378.4,4378.2,0.7576]
[1756964101139,0.001,4378.4,4378.2,0.2876]
[1756964102428,0.001,4378.4,4378.3,3.85]
[1756964102630,0.001,4378.4,4378.3,4.26376]
[1756964102834,0.001,4378.4,4378.3,4.57946]
[1756964104437,0.001,4378.4,4378.3,33.7111026]
[1756964104672,0.025,4378.8,4378.7,2.28378285]
[1756964104965,0.025,4378.8,4378.7,16.93378285]
[1756964105270,0.025,4378.8,4378.7,20.22251697]
[1756964105644,0.025,4378.8,4378.7,6.18603412]
[1756964105968,0.3332,4378.8,4378.7,3.853]
[1756964106267,1.2854,4378.8,4378.7,3.853]
[1756964106464,3.56918236,4378.8,4378.6,3.854]
[1756964106667,3.56918236,4378.8,4378.3,1.756]
[1756964106668,0.9522,4378.7,4378.3,1.756]
[1756964106966,0.3082,4378.4,4378.3,5.61]
[1756964107267,1.2614,4378.4,4378.3,5.61]
[1756964109245,0.001,4378.4,4378.3,5.9257]
[1756964109440,0.001,4378.4,4378.3,6.48801197]
[1756964110968,0.001,4378.4,4378.3,8.77200347]
[1756964111283,0.001,4378.4,4378.3,6.48801197]
[1756964111576,0.001,4378.4,4378.3,6.17231197]
[1756964112151,0.001,4378.4,4378.3,6.48801197]
[1756964112377,0.001,4378.4,4378.3,6.17231197]
[1756964112537,0.3092,4378.4,4378.3,1.756]
[1756964112742,0.3092,4378.4,4378.3,5.281]
[1756964113051,0.3092,4378.4,4378.2,3.85]
[1756964113052,1.2614,4378.4,4378.2,3.85]
[1756964113253,0.9522,4378.3,4378.2,3.85]
[1756964113451,1.2604,4378.3,4378.2,3.85]
[1756964114848,1.2604,4378.3,4377.6,1.756]
[1756964115144,2.28414853,4378.0,4377.7,3.85]
[1756964115451,0.4226,4377.8,4377.7,3.85]
[1756964116053,1.3748,4377.8,4377.6,1.756]
[1756964116373,2.28440219,4377.6,4377.5,3.408]
[1756964116583,2.59260219,4377.6,4377.5,3.408]
[1756964116759,3.65920219,4377.6,4377.5,3.408]
[1756964118362,0.1144,4377.6,4377.5,3.408]
[1756964118560,0.1144,4377.6,4377.5,3.7237]
[1756964118757,0.1144,4377.9,4377.8,2.28423732]
[1756964118969,0.1144,4378.1,4377.9,2.28415333]
[1756964119169,0.1144,4378.1,4377.8,6.3927]
[1756964119170,0.1144,4378.1,4378.0,0.3157]
[1756964119492,0.3082,4377.9,4377.8,1.756]
[1756964119675,0.3082,4377.9,4377.8,5.609]
[1756964119880,0.1144,4378.1,4377.8,5.609]
[1756964121556,0.5749,4378.1,4377.8,5.609]
[1756964121757,0.1144,4378.1,4377.8,5.609]
[1756964123481,0.3082,4377.9,4377.8,5.609]
[1756964123688,0.7687,4377.9,4377.8,1.756]
[1756964123888,1.2604,4377.9,4377.8,5.608]
[1756964124465,3.54460018,4377.9,4377.8,1.756]
[1756964124656,3.54460018,4377.9,4377.8,5.607]
[1756964125487,1.2604,4377.9,4377.8,5.607]
[1756964125783,3.54460018,4377.9,4377.8,5.607]
[1756964125988,3.54460018,4377.9,4377.8,5.611]
[1756964126589,3.54460018,4377.9,4377.8,3.855]
[1756964126797,3.54460018,4377.9,4377.8,0.004]
[1756964127790,1.2604,4377.9,4377.8,0.004]
[1756964128089,0.3082,4377.9,4377.8,0.004]
[1756964129195,2.59240018,4377.9,4377.8,0.004]
[1756964129689,0.7687,4377.9,4377.8,0.004]
[1756964130603,0.1144,4378.1,4377.8,0.004]
[1756964131104,1.0525,4378.1,4377.8,0.004]
[1756964131579,3.33660317,4378.1,4377.8,0.004]
[1756964131964,1.0525,4378.1,4377.8,0.004]
[1756964133592,0.1144,4378.1,4377.8,0.004]
[1756964133891,2.74045146,4378.4,4377.8,0.004]
[1756964133892,0.1144,4377.9,4377.8,0.004]
[1756964134190,0.1144,4377.9,4377.8,2.28823535]
[1756964134397,0.001,4378.4,4377.8,2.28823535]
[1756964134398,0.001,4378.4,4377.8,1.2114]
[1756964134576,0.001,4378.4,4377.9,1.756]
[1756964134784,0.1144,4378.3,4378.0,4.14574]
[1756964135089,0.1144,4378.3,4378.2,2.58924367]
[1756964135297,0.001,4378.4,4378.3,2.2839915]
[1756964135497,0.001,4378.4,4378.3,3.20903141]
[1756964135698,0.001,4378.4,4378.3,4.52007292]
[1756964135896,0.001,4378.4,4378.3,4.49723301]
[1756964136072,0.001,4378.4,4378.3,4.52007292]
[1756964136272,0.001,4378.4,4378.3,4.49723301]
[1756964136676,0.001,4378.4,4378.3,8.34623301]
[1756964137201,0.001,4378.4,4378.3,11.46063301]
[1756964139393,0.001,4378.4,4378.3,7.61163301]
[1756964139698,0.001,4378.4,4378.3,11.46063301]
[1756964139899,0.001,4378.4,4378.3,1.31104151]
[1756964140197,0.001,4378.4,4378.3,3.85]
[1756964140706,1.2269,4378.4,4378.3,3.85]
[1756964140906,1.3413,4378.4,4377.9,4.04019192]
[1756964141212,0.4555,4378.3,4378.0,3.85]
[1756964141408,1.3413,4378.4,4378.0,3.85]
[1756964141602,1.0535,4378.4,4378.0,3.85]
[1756964141923,0.1154,4378.4,4378.0,3.85]
[1756964142116,0.1154,4378.4,4378.2,2.28400077]
[1756964142288,0.1154,4378.4,4378.3,3.85]
[1756964143213,0.1154,4378.4,4378.3,6.1339915]
[1756964143411,0.1154,4378.4,4378.3,6.4391915]
[1756964143812,0.001,4378.4,4378.3,6.9874915]
[1756964144108,0.001,4378.4,4378.3,8.01757803]
[1756964144700,0.001,4378.4,4378.3,8.37147803]
[1756964145004,0.001,4378.4,4378.3,8.48587803]
[1756964145977,0.001,4378.4,4378.3,7.62744003]
[1756964146485,0.001,4378.4,4378.3,10.62744003]
[1756964147922,0.001,4378.4,4378.3,9.72524003]
[1756964148227,0.2888,4378.4,4378.1,0.561]
[1756964148408,1.2269,4378.4,4378.3,6.1319915]
[1756964148783,0.2888,4378.4,4378.3,6.1319915]
[1756964149225,0.001,4378.4,4378.3,6.4371915]
[1756964149715,0.001,4378.4,4378.3,6.1319915]
[1756964149916,0.2888,4378.4,4378.3,6.1319915]
[1756964150222,0.001,4378.4,4378.3,6.1319915]
[1756964150794,1.2269,4378.4,4377.9,4.04019529]
[1756964151009,1.2269,4378.4,4378.0,3.85]
[1756964151010,0.1144,4378.2,4378.0,3.85]
[1756964151201,1.2259,4378.1,4378.0,3.85]
[1756964153333,0.7704,4378.1,4378.0,3.85]
[1756964153497,1.2259,4378.1,4378.0,3.85]
[1756964154026,1.2259,4378.1,4378.0,3.849]
[1756964156727,0.2878,4378.1,4378.0,3.849]
[1756964156944,0.2878,4378.1,4378.0,6.13314801]
[1756964157427,0.2878,4378.1,4378.0,3.849]
[1756964157932,1.2259,4378.1,4378.0,3.849]
[1756964158896,1.2259,4378.1,4377.9,1.756]
[1756964159102,0.2878,4378.1,4378.0,3.848]
[1756964159311,0.7433,4378.1,4378.0,3.848]
[1756964159711,1.2259,4378.1,4378.0,3.848]
[1756964164450,1.2259,4378.1,4377.9,1.756]
[1756964164639,3.18534801,4378.0,4377.9,1.756]
[1756964164936,3.49294801,4378.0,4377.9,5.604]
[1756964165439,3.49294801,4378.0,4377.9,3.848]
[1756964165757,5.28420018,4377.9,4377.8,0.004]
[1756964165909,6.19060018,4377.9,4377.8,0.004]
[1756964166258,7.39940018,4377.9,4377.8,0.004]
[1756964168752,11.24740018,4377.9,4377.8,0.004]
[1756964172753,11.88276339,4377.9,4377.8,1e-08]
[1756964173446,11.39945173,4377.9,4377.8,1e-08]
[1756964175522,7.55145173,4377.9,4377.8,1e-08]
[1756964175727,11.13900018,4377.9,4377.8,1e-08]
[1756964175944,11.40545173,4377.9,4377.8,1e-08]
[1756964176534,11.6797939,4377.9,4377.8,1e-08]
[1756964177326,11.40545173,4377.9,4377.8,1e-08]
[1756964177861,11.88837274,4377.9,4377.8,1e-08]
[1756964178030,11.40545173,4377.9,4377.8,1e-08]
[1756964178461,11.13800018,4377.9,4377.8,1e-08]
[1756964178759,6.13720018,4377.9,4377.8,0.30090001]
[1756964179010,6.89490018,4377.9,4377.8,1e-08]
[1756964179514,9.44580018,4377.9,4377.8,1e-08]
[1756964179994,9.89690018,4377.9,4377.8,1e-08]
[1756964180289,9.44580018,4377.9,4377.8,1e-08]
[1756964180453,9.89590018,4377.9,4377.8,1e-08]
[1756964180659,10.34700018,4377.9,4377.8,1e-08]
[1756964180869,9.89590018,4377.9,4377.8,1e-08]
[1756964181165,9.13820018,4377.9,4377.8,0.30090001]
[1756964181782,9.13820018,4377.9,4377.8,1e-08]
[1756964181985,9.44580018,4377.9,4377.8,1e-08]
[1756964182190,9.89590018,4377.9,4377.8,1e-08]
[1756964182395,10.34700018,4377.9,4377.8,1e-08]
[1756964182754,10.46140018,4377.9,4377.8,1e-08]
[1756964183464,20.19317326,4377.9,4377.8,1e-08]
[1756964184766,20.45962481,4377.9,4377.8,1e-08]
[1756964186293,19.74307326,4377.9,4377.8,1e-08]
[1756964186892,20.19317326,4377.9,4377.8,1e-08]
[1756964187586,6.19060018,4377.9,4377.8,0.30090001]
[1756964187798,10.34920018,4377.9,4377.8,1e-08]
[1756964188502,10.04160018,4377.9,4377.8,1e-08]
[1756964188714,20.19017326,4377.9,4377.8,1e-08]
[1756964189770,19.28897326,4377.9,4377.8,1e-08]
[1756964190405,10.04160018,4377.9,4377.8,0.30320001]
[1756964191575,10.04160018,4377.9,4377.8,1e-08]
[1756964192186,10.04160018,4377.9,4377.8,0.30320001]
[1756964192496,11.29350018,4377.9,4377.8,1e-08]
[1756964193579,12.31936272,4377.9,4377.8,1e-08]
[1756964195706,19.33936272,4377.9,4377.8,1e-08]
[1756964199815,19.06502055,4377.9,4377.8,1e-08]
[1756964200913,17.545669,4377.9,4377.8,0.30320001]
[1756964201621,17.545669,4377.9,4377.8,1e-08]
[1756964202729,17.545669,4377.9,4377.8,0.30320001]
[1756964202902,16.753669,4377.9,4377.8,0.30320001]
[1756964203097,17.545669,4377.9,4377.8,0.30320001]
[1756964203917,26.48544208,4377.9,4377.8,0.30320001]
[1756964204705,12.903669,4377.9,4377.8,0.30320001]
[1756964204919,16.753669,4377.9,4377.8,0.30320001]
[1756964205421,25.69344208,4377.9,4377.8,1e-08]
[1756964208596,26.78394208,4377.9,4377.8,1e-08]
[1756964208928,27.73734208,4377.9,4377.8,1e-08]
[1756964209097,18.60012055,4377.9,4377.8,1e-08]
[1756964209295,27.05039363,4377.9,4377.8,1e-08]
[1756964209797,27.05039363,4377.9,4377.8,0.30320001]
[1756964209798,17.545669,4377.9,4377.8,0.30320001]
[1756964210626,0.59946882,4377.9,4377.8,0.79470001]
[1756964210811,0.1144,4377.9,4377.8,0.79470001]
[1756964211014,0.1144,4377.9,4377.8,2.45678768]
[1756964211212,0.1154,4377.9,4377.8,2.45678768]
[1756964211838,0.1154,4377.9,4377.8,1.25490001]
[1756964212330,2.39960018,4377.9,4377.8,0.79470001]
[1756964212543,2.39960018,4377.9,4377.8,0.30320001]
[1756964212902,2.39960018,4377.9,4377.8,0.76340001]
[1756964213846,2.39960018,4377.9,4377.8,1.25490001]
[1756964214842,2.39960018,4377.9,4377.8,0.76340001]
[1756964216650,2.39960018,4377.9,4377.8,0.30320001]
[1756964217848,2.39960018,4377.9,4377.8,0.76340001]
[1756964218007,0.1154,4377.9,4377.8,1.25490001]
[1756964218337,0.1154,4377.9,4377.8,2.27436732]
[1756964218756,0.1154,4377.9,4377.8,1.01946732]
[1756964219052,0.1154,4377.9,4377.8,0.76340001]
[1756964219232,0.1154,4377.9,4377.8,1.25490001]
[1756964221469,0.1154,4377.9,4377.8,10.19467309]
[1756964221614,0.001,4377.9,4377.8,12.47892545]
[1756964221814,0.001,4377.9,4377.8,14.08109186]
[1756964222314,0.001,4377.9,4377.8,23.02086494]
[1756964222552,0.001,4377.9,4377.8,26.02086494]
[1756964222738,0.001,4377.9,4377.8,17.08109186]
[1756964223388,0.001,4377.9,4377.8,20.93009186]
[1756964223841,0.001,4377.9,4377.8,21.10389764]
[1756964224429,0.001,4377.9,4377.8,30.04367072]
[1756964225348,0.001,4377.9,4377.8,37.84367072]
[1756964225557,0.001,4377.9,4377.8,30.87192503]
[1756964228251,0.001,4378.3,4378.2,2.28404367]
[1756964228468,0.001,4378.3,4378.2,22.72508457]
[1756964228763,0.026,4378.8,4378.7,16.98358332]
[1756964228930,0.026,4378.8,4378.7,20.94698332]
[1756964229124,0.026,4378.8,4378.7,22.20258332]
[1756964229320,0.026,4378.8,4378.7,32.27049129]
[1756964231232,0.026,4378.8,4378.7,30.62610594]
[1756964231421,0.026,4378.8,4378.7,31.57000594]
[1756964233518,0.026,4378.8,4378.7,22.82610594]
[1756964234432,0.026,4378.8,4378.7,15.97710594]
[1756964234739,0.026,4378.8,4378.7,19.51340594]
[1756964234930,0.026,4378.8,4378.7,19.73359129]
[1756964235130,0.026,4378.8,4378.7,19.42189129]
[1756964235522,0.026,4378.8,4378.7,19.73359129]
[1756964235948,0.026,4378.8,4378.7,19.42189129]
[1756964236154,0.026,4378.8,4378.6,0.09152554]
[1756964236155,1.2405,4378.8,4378.6,0.09152554]
[1756964236341,0.026,4378.8,4378.7,6.13178285]
[1756964236522,0.026,4378.8,4378.7,3.848]
[1756964236922,0.3328,4378.8,4378.7,3.848]
[1756964237759,0.7619,4378.8,4378.7,3.848]
[1756964237931,1.2405,4378.8,4378.7,3.848]
[1756964240232,2.28382359,4378.7,4378.2,1.756]
[1756964240436,0.1144,4378.5,4378.3,3.847]
[1756964241156,0.3068,4378.4,4378.3,3.847]
[1756964241460,0.026,4378.8,4378.7,2.28378285]
[1756964241758,0.026,4378.8,4378.7,17.03958332]
[1756964241926,0.026,4378.8,4378.7,6.36158285]
[1756964242127,0.3328,4378.8,4378.7,2.51358285]
[1756964242323,0.3328,4378.8,4378.7,6.24618285]
[1756964242627,0.026,4378.8,4378.7,7.41088674]
[1756964242827,0.026,4378.8,4378.7,7.86838674]
[1756964243058,0.026,4378.8,4378.7,11.35478674]
[1756964243834,0.026,4378.8,4378.7,10.10018674]
[1756964244041,0.026,4378.8,4378.7,10.41188674]
[1756964246257,0.7619,4378.8,4378.7,0.96740389]
[1756964246457,1.2405,4378.8,4378.7,6.24818285]
[1756964246663,0.026,4378.8,4378.7,6.24818285]
[1756964246830,0.026,4378.8,4378.7,6.55988285]
[1756964249267,0.026,4378.8,4378.7,10.01738285]
[1756964249467,0.026,4378.8,4378.7,12.77169082]
[1756964249681,0.026,4378.8,4378.7,12.86320442]
[1756964250481,0.026,4378.8,4378.7,24.56300489]
[1756964250966,0.026,4378.8,4378.7,24.79180489]
[1756964251871,0.001,4379.2,4379.1,6.07557425]
[1756964252174,0.001,4379.2,4379.1,22.70277472]
[1756964252370,0.001,4379.2,4379.1,22.98867472]
[1756964252570,0.001,4379.2,4379.1,23.89847472]
[1756964254786,0.001,4379.2,4379.1,19.56767472]
[1756964255086,0.7675,4379.2,4379.1,10.26988222]
[1756964255274,1.2448,4379.2,4379.1,8.00197425]
[1756964256287,0.3115,4379.2,4379.1,8.00197425]
[1756964258561,0.001,4379.2,4379.1,8.00197425]
[1756964258761,0.001,4379.2,4379.1,8.28787425]
[1756964258962,0.001,4379.2,4379.1,9.5718174]
[1756964259697,0.001,4379.2,4379.1,9.66332724]
[1756964260586,0.001,4379.2,4379.1,12.66332724]
[1756964262290,0.001,4379.2,4379.1,20.46332724]
[1756964262488,0.001,4379.2,4379.1,21.37312724]
[1756964262669,0.001,4379.2,4379.1,20.46332724]
[1756964263670,1.2448,4379.2,4379.1,3.13045299]
[1756964263966,1.2448,4379.2,4379.1,7.88557425]
[1756964264457,0.7888,4379.2,4379.1,7.88557425]
[1756964264662,0.001,4379.2,4379.1,7.88557425]
[1756964264875,0.3115,4379.2,4379.1,7.88557425]
[1756964265071,0.001,4379.2,4379.1,7.88557425]
[1756964265259,0.001,4379.2,4379.1,9.20532872]
[1756964265766,0.001,4379.2,4379.1,8.91942872]
[1756964266213,0.001,4379.2,4379.1,9.63432872]
[1756964266493,0.001,4379.2,4379.1,10.11512872]
[1756964266798,0.001,4379.2,4379.1,9.63432872]
[1756964267671,0.001,4379.2,4379.1,17.43432872]
[1756964268293,0.001,4379.2,4379.1,21.50692872]
[1756964268597,0.001,4379.2,4379.1,21.93592872]
[1756964270090,0.001,4379.2,4379.1,21.70712872]
[1756964270991,0.001,4379.2,4379.1,21.93592872]
[1756964273578,0.001,4380.3,4380.2,3.30380077]
[1756964273779,1e-08,4380.9,4380.8,0.2288]
[1756964273981,1e-08,4380.9,4380.8,34.66621512]
[1756964274184,1e-08,4380.9,4380.8,42.46621512]
[1756964274382,1e-08,4380.9,4380.8,43.37601512]
[1756964274588,1e-08,4380.9,4380.8,45.64392309]
[1756964275372,1e-08,4380.9,4380.8,45.75765705]
[1756964275578,1e-08,4380.9,4380.8,37.90495387]
[1756964275875,1e-08,4380.9,4380.8,37.67615387]
[1756964276096,1e-08,4380.9,4380.8,37.56241991]
[1756964276495,1e-08,4380.9,4380.8,36.65261991]
[1756964276709,1e-08,4380.9,4380.8,36.65361991]
[1756964277575,1e-08,4380.9,4380.8,25.76549606]
[1756964278695,1e-08,4380.9,4380.8,26.19449606]
[1756964278898,1e-08,4380.9,4380.8,26.67529606]
[1756964279101,1e-08,4380.9,4380.8,26.19449606]
[1756964279409,1e-08,4380.9,4380.8,25.76549606]
[1756964279786,1e-08,4380.9,4380.8,26.67529606]
[1756964280215,1e-08,4380.9,4380.8,26.19449606]
[1756964280717,1e-08,4380.9,4380.8,25.76549606]
[1756964283019,1e-08,4380.9,4380.8,26.70719606]
[1756964283214,0.4735,4382.4,4380.8,26.70719606]
[1756964283215,0.4735,4382.6,4381.6,3.0]
[1756964283416,0.4735,4382.6,4381.4,0.792]
[1756964283417,0.4735,4382.6,4381.8,6.07416714]
[1756964283590,0.4735,4382.6,4381.8,10.21926714]
[1756964283783,0.4735,4382.6,4381.8,18.13366714]